fUSD/lending_fUSD_20250618
["ID","MTS","AMOUNT","RATE_DAILY","PERIOD"]
[366439406,1750256906787,1879.70919235,0.0001,2]
[366439407,1750256908899,381.18651455,7.888e-05,2]
[366439410,1750256922958,261.08589142,0.000107,2]
[366439412,1750256926633,390.79799955,0.00010136,2]
[366439413,1750256926656,972.96573883,0.00010136,2]
[366439414,1750256926815,32047.42656924,0.00013368,2]
[366439423,1750256930734,160.0,0.00016434,120]
[366439425,1750256937203,400.0,0.00024657,120]
[366439755,1750256973282,150.0,0.000141,2]
[366439756,1750256984255,217.0,0.00024658,120]
[366439770,1750257031940,-205.0,0.00014227,2]
[366439771,1750257031951,-165.97,0.00014286,2]
[366439773,1750257031961,-666.0,0.00014286,2]
[366439775,1750257031971,-1189.92,0.00014286,2]
[366439777,1750257031982,-165.97,0.0001431,2]
[366439779,1750257031992,-165.97,0.00014334,2]
[366439781,1750257032002,-165.97,0.00014357,2]
[366439783,1750257032012,-284.0,0.00014389,2]
[366439785,1750257032022,-270.0,0.00014389,2]
[366439787,1750257032032,-300.0,0.00014389,2]
[366439789,1750257032042,-9823.83015614,0.0001439,2]
[366439791,1750257032052,-302.0,0.00014817,2]
[366439793,1750257032061,-1000.0,0.00014925,2]
[366439795,1750257032071,-150.0,0.00014999,2]
[366439797,1750257032081,-6909.03839118,0.00015,2]
[366439799,1750257032092,-14296.76422508,0.00015,2]
[366439801,1750257032102,-1000.0,0.0001505,2]
[366439803,1750257032112,-300.0,0.0001505,2]
[366439805,1750257032122,-19039.88,0.00015051,2]
[366439807,1750257032133,-166.1,0.0001509,2]
[366439808,1750257032142,-226.0,0.00015095,2]
[366439810,1750257032152,-151.0,0.00015117,2]
[366439812,1750257032162,-151.0,0.0001512,2]
[366439814,1750257032171,-151.0,0.00015148,2]
[366439816,1750257032180,-161.34,0.0001525,2]
[366439818,1750257032190,-19571.04,0.0001534,2]
[366439820,1750257032200,-166.37,0.00015376,2]
[366439822,1750257032210,-261.02,0.0001539,2]
[366439824,1750257032220,-843.28794607,0.000154,2]
[366439826,1750257032232,-1957.856,0.00015578,2]
[366439828,1750257032242,-207.4,0.00015578,2]
[366439830,1750257032252,-2030.296672,0.00015633,2]
[366439832,1750257032261,-459.8726039,0.00015688,2]
[366439834,1750257032272,-300.0,0.00015715,2]
[366439836,1750257032282,-205.0,0.00015752,3]
[366439838,1750257032292,-420.0,0.00015758,2]
[366439840,1750257032301,-1000.0,0.000158,2]
[366439842,1750257032312,-858.36893487,0.000158,2]
[366439844,1750257032321,-165.99583341,0.000158,2]
[366439846,1750257032330,-166.1,0.0001588,2]
[366439848,1750257032339,-166.1,0.0001589,2]
[366439887,1750257032709,-151.0,0.0001589,2]
[366439889,1750257032719,-151.0,0.0001589,2]
[366439891,1750257032728,-300.0,0.0001589,2]
[366439893,1750257032738,-500.0,0.0001589,2]
[366439895,1750257032747,-300.0,0.0001589,2]
[366439897,1750257032757,-500.0,0.0001589,2]
[366439899,1750257032766,-300.0,0.0001589,2]
[366439901,1750257032775,-500.0,0.0001589,2]
[366439903,1750257032784,-500.0,0.0001589,2]
[366439905,1750257032794,-300.0,0.0001589,2]
[366439907,1750257032803,-500.0,0.0001589,2]
[366439909,1750257032813,-500.0,0.0001589,2]
[366439911,1750257032822,-300.0,0.0001589,2]
[366439913,1750257032831,-500.0,0.0001589,2]
[366439915,1750257032841,-300.0,0.0001589,2]
[366439917,1750257032851,-500.0,0.0001589,2]
[366439918,1750257032861,-300.0,0.0001589,2]
[366439919,1750257032870,-623.66117744,0.0001589,2]
[366439920,1750257032880,-300.0,0.0001589,2]
[366439921,1750257032890,-180.10687711,0.0001589,2]
[366439922,1750257032899,-500.0,0.0001589,2]
[366439923,1750257032909,-500.0,0.0001589,2]
[366439924,1750257032919,-188.4460424,0.0001589,2]
[366439925,1750257032928,-785.90071411,0.0001589,2]
[366439926,1750257032938,-151.0,0.0001589,2]
[366439927,1750257032948,-151.0,0.0001589,2]
[366439928,1750257032958,-151.0,0.0001589,2]
[366439929,1750257032968,-151.0,0.0001589,2]
[366439930,1750257032978,-4144.81692073,0.00015899,2]
[366439932,1750257032988,-26085.60750556,0.000159,2]
[366439935,1750257033001,-570.55157139,0.000159,2]
[366439943,1750257033067,-59907.55572305,0.000159,2]
[366439945,1750257033077,-752.74641053,0.000159,2]
[366439946,1750257033087,-302.0,0.00015966,2]
[366439948,1750257033096,-858.36893487,0.00015978,2]
[366439951,1750257033106,-226.0,0.00015988,2]
[366439952,1750257033115,-166.1,0.0001599,2]
[366439954,1750257033125,-2184.60226278,0.00016,2]
[366439957,1750257033138,-1042.01624572,0.00016,2]
[366439963,1750257033187,-32716.21896539,0.00016,2]
[366439967,1750257033218,-91416.96343142,0.00016,2]
[366439969,1750257033229,-494.62,0.00016,2]
[366439971,1750257033239,-302.3,0.00016,2]
[366439973,1750257033250,-507.69,0.00016,2]
[366439975,1750257033262,-495.55,0.00016,2]
[366439977,1750257033272,-505.91,0.00016,2]
[366439979,1750257033281,-501.1,0.00016,2]
[366439981,1750257033291,-388.37578106,0.00016,2]
[366440064,1750257037575,-116.84421894,0.00016,2]
[366440065,1750257037586,-498.16,0.00016,2]
[366440066,1750257037597,-502.71,0.00016,2]
[366440067,1750257037607,-506.61,0.00016,2]
[366440068,1750257037617,-503.54,0.00016,2]
[366440069,1750257037627,-505.74,0.00016,2]
[366440070,1750257037637,-301.17,0.00016,2]
[366440071,1750257037646,-152.22,0.00016,2]
[366440072,1750257037656,-304.27,0.00016,2]
[366440073,1750257037665,-303.37,0.00016,2]
[366440074,1750257037675,-151.79,0.00016,2]
[366440075,1750257037688,-304.9,0.00016,2]
[366440076,1750257037698,-305.2,0.00016,2]
[366440077,1750257037707,-255.0,0.00016124,2]
[366440078,1750257037717,-858.36893487,0.00016156,2]
[366440079,1750257037727,-867.9924602,0.00016169,2]
[366440080,1750257037743,-1940.4338,0.00016238,2]
[366440081,1750257037753,-261.02,0.0001626,2]
[366440082,1750257037764,-856.62528,0.00016269,2]
[366440083,1750257037775,-7000.0,0.0001627,2]
[366440084,1750257037786,-833.92080167,0.00016285,2]
[366440085,1750257037797,-1135.0,0.000163,2]
[366440086,1750257037807,-302.0,0.00016319,2]
[366440087,1750257037818,-858.36893487,0.00016333,2]
[366440088,1750257037829,-368.4335177,0.00016338,2]
[366440089,1750257037840,-196.89492749,0.00016338,2]
[366440090,1750257037851,-248.86685415,0.00016338,2]
[366440091,1750257037862,-22612.2429,0.00016338,2]
[366440092,1750257037872,-500.0,0.00016362,2]
[366440093,1750257037882,-500.0,0.00016388,2]
[366440094,1750257037892,-1160.0,0.00016399,2]
[366440095,1750257037902,-303.959,0.00016399,2]
[366440096,1750257037912,-3332.0,0.00016399,2]
[366440097,1750257037921,-7112.0,0.00016399,2]
[366440098,1750257037931,-4090.0,0.00016399,2]
[366440100,1750257037940,-7000.0,0.000164,2]
[366440102,1750257037950,-500.0,0.00016437,2]
[366440105,1750257037960,-500.0,0.00016437,2]
[366440107,1750257037969,-500.0,0.00016437,2]
[366440108,1750257037979,-207.80291405,0.00016437,2]
[366440111,1750257037992,-500.0,0.00016437,2]
[366440113,1750257038002,-500.0,0.00016437,2]
[366440115,1750257038011,-500.0,0.00016437,2]
[366440117,1750257038021,-500.0,0.00016437,2]
[366440118,1750257038031,-391.88915587,0.00016437,2]
[366440120,1750257038041,-500.0,0.00016437,2]
[366440122,1750257038050,-500.0,0.00016437,2]
[366440124,1750257038060,-500.0,0.00016437,2]
[366440126,1750257038070,-500.0,0.00016437,2]
[366440129,1750257038079,-500.0,0.00016437,2]
[366440131,1750257038089,-500.0,0.00016437,2]
[366440133,1750257038099,-476.66176804,0.00016437,2]
[366440134,1750257038109,-500.0,0.00016437,2]
[366440137,1750257038118,-550.22860524,0.00016437,2]
[366440139,1750257038128,-500.0,0.00016437,2]
[366440140,1750257038137,-500.0,0.00016437,2]
[366440142,1750257038147,-500.0,0.00016437,2]
[366440144,1750257038156,-500.0,0.00016437,2]
[366440146,1750257038166,-500.0,0.00016437,2]
[366440148,1750257038176,-500.0,0.00016437,2]
[366440151,1750257038185,-500.0,0.00016437,2]
[366440153,1750257038195,-500.0,0.00016437,2]
[366440155,1750257038205,-2603.55,0.00016437,2]
[366440157,1750257038214,-151.0,0.00016438,2]
[366440159,1750257038224,-151.0,0.00016438,2]
[366440161,1750257038235,-500.0,0.00016438,2]
[366440162,1750257038245,-500.0,0.00016438,2]
[366440164,1750257038255,-500.0,0.00016438,2]
[366440167,1750257038266,-353.78527259,0.00016438,2]
[366440168,1750257038276,-500.0,0.00016438,2]
[366440171,1750257038286,-500.0,0.00016438,2]
[366440173,1750257038295,-500.0,0.00016438,2]
[366440174,1750257038305,-500.0,0.00016438,2]
[366440177,1750257038314,-500.0,0.00016438,2]
[366440178,1750257038323,-500.0,0.00016438,2]
[366440180,1750257038333,-500.0,0.00016438,2]
[366440183,1750257038343,-500.0,0.00016438,2]
[366440184,1750257038352,-468.60163255,0.00016438,2]
[366440187,1750257038362,-491.14673825,0.00016438,2]
[366440188,1750257038372,-490.0,0.00016438,2]
[366440191,1750257038382,-490.0,0.00016438,2]
[366440193,1750257038391,-686.14,0.00016438,2]
[366440195,1750257038402,-551.49,0.00016438,2]
[366440196,1750257038412,-777.25,0.00016438,2]
[366440198,1750257038423,-490.0,0.00016438,2]
[366440200,1750257038433,-518.54,0.00016438,2]
[366440202,1750257038442,-560.09,0.00016438,2]
[366440205,1750257038452,-490.0,0.00016438,2]
[366440207,1750257038462,-285.76,0.00016438,2]
[366440209,1750257038471,-490.0,0.00016438,2]
[366440211,1750257038481,-490.0,0.00016438,2]
[366440213,1750257038496,-490.0,0.00016438,2]
[366440215,1750257038505,-300.0,0.00016438,2]
[366440217,1750257038515,-490.0,0.00016438,2]
[366440219,1750257038524,-490.0,0.00016438,2]
[366440221,1750257038534,-490.0,0.00016438,2]
[366440223,1750257038543,-490.0,0.00016438,2]
[366440225,1750257038553,-781.86,0.00016438,2]
[366440227,1750257038562,-492.72,0.00016438,2]
[366440229,1750257038572,-490.0,0.00016438,2]
[366440231,1750257038582,-490.0,0.00016438,2]
[366440233,1750257038591,-500.0,0.00016438,2]
[366440235,1750257038601,-550.0,0.00016438,2]
[366440237,1750257038610,-500.0,0.00016438,2]
[366440239,1750257038619,-500.0,0.00016438,2]
[366440241,1750257038629,-519.56,0.00016438,2]
[366440243,1750257038638,-500.0,0.00016438,2]
[366440245,1750257038647,-500.0,0.00016438,2]
[366440247,1750257038657,-500.0,0.00016438,2]
[366440249,1750257038666,-500.0,0.00016438,2]
[366440251,1750257038676,-490.77245717,0.00016438,2]
[366440253,1750257038685,-523.43,0.00016438,2]
[366440255,1750257038694,-490.0,0.00016438,2]
[366440257,1750257038704,-990.9,0.00016438,2]
[366440259,1750257038714,-490.0,0.00016438,2]
[366440261,1750257038723,-490.0,0.00016438,2]
[366440263,1750257038733,-490.0,0.00016438,2]
[366440265,1750257038742,-490.0,0.00016438,2]
[366440267,1750257038752,-490.0,0.00016438,2]
[366440269,1750257038761,-1153.125,0.00016438,2]
[366440271,1750257038771,-1153.125,0.00016438,2]
[366440273,1750257038780,-1153.125,0.00016438,2]
[366440275,1750257038789,-1153.125,0.00016438,2]
[366440277,1750257038798,-1153.125,0.00016438,2]
[366440279,1750257038808,-1153.125,0.00016438,2]
[366440281,1750257038818,-1153.125,0.00016438,2]
[366440283,1750257038829,-1153.125,0.00016438,2]
[366440285,1750257038838,-1153.125,0.00016438,2]
[366440287,1750257038847,-1153.125,0.00016438,2]
[366440289,1750257038857,-1153.125,0.00016438,2]
[366440291,1750257038866,-1153.125,0.00016438,2]
[366440293,1750257038876,-1153.125,0.00016438,2]
[366440295,1750257038886,-1153.125,0.00016438,2]
[366440297,1750257038895,-1153.125,0.00016438,2]
[366440299,1750257038905,-1153.125,0.00016438,2]
[366440301,1750257038915,-538.02,0.00016438,2]
[366440303,1750257038924,-763.15,0.00016438,2]
[366440305,1750257038934,-1338.65,0.00016438,2]
[366440307,1750257038943,-490.0,0.00016438,2]
[366440309,1750257038953,-613.29,0.00016438,2]
[366440311,1750257038962,-490.0,0.00016438,2]
[366440313,1750257038971,-743.18,0.00016438,2]
[366440315,1750257038981,-490.0,0.00016438,2]
[366440317,1750257038992,-490.0,0.00016438,2]
[366440319,1750257039001,-490.0,0.00016438,2]
[366440321,1750257039011,-706.15,0.00016438,2]
[366440323,1750257039020,-490.0,0.00016438,2]
[366440324,1750257039030,-490.0,0.00016438,2]
[366440325,1750257039040,-490.0,0.00016438,2]
[366440326,1750257039050,-490.55427611,0.00016438,2]
[366440327,1750257039060,-490.0,0.00016438,2]
[366440328,1750257039069,-490.0,0.00016438,2]
[366440329,1750257039079,-551.76,0.00016438,2]
[366440330,1750257039089,-492.81947186,0.00016438,2]
[366440331,1750257039098,-490.0,0.00016438,2]
[366440332,1750257039108,-490.0,0.00016438,2]
[366440333,1750257039118,-490.0,0.00016438,2]
[366440334,1750257039128,-490.0,0.00016438,2]
[366440335,1750257039138,-546.08,0.00016438,2]
[366440336,1750257039147,-490.0,0.00016438,2]
[366440337,1750257039157,-658.72,0.00016438,2]
[366440338,1750257039167,-490.0,0.00016438,2]
[366440339,1750257039177,-490.0,0.00016438,2]
[366440340,1750257039186,-490.0,0.00016438,2]
[366440341,1750257039196,-492.46103747,0.00016438,2]
[366440342,1750257039206,-490.0,0.00016438,2]
[366440343,1750257039215,-493.66718825,0.00016438,2]
[366440344,1750257039225,-490.0,0.00016438,2]
[366440345,1750257039237,-490.0,0.00016438,2]
[366440346,1750257039246,-490.0,0.00016438,2]
[366440347,1750257039256,-490.0,0.00016438,2]
[366440348,1750257039265,-533.74,0.00016438,2]
[366440349,1750257039275,-490.0,0.00016438,2]
[366440350,1750257039285,-490.0,0.00016438,2]
[366440351,1750257039295,-490.0,0.00016438,2]
[366440352,1750257039304,-490.0,0.00016438,2]
[366440353,1750257039314,-490.0,0.00016438,2]
[366440354,1750257039323,-490.0,0.00016438,2]
[366440355,1750257039334,-490.0,0.00016438,2]
[366440356,1750257039344,-490.0,0.00016438,2]
[366440357,1750257039354,-507.16689485,0.00016438,2]
[366440358,1750257039364,-490.0,0.00016438,2]
[366440359,1750257039374,-490.0,0.00016438,2]
[366440360,1750257039384,-490.0,0.00016438,2]
[366440361,1750257039394,-493.49968535,0.00016438,2]
[366440362,1750257039713,-490.0,0.00016438,2]
[366440363,1750257039725,-490.0,0.00016438,2]
[366440364,1750257039738,-490.0,0.00016438,2]
[366440365,1750257039749,-490.0,0.00016438,2]
[366440366,1750257039758,-500.0,0.00016438,2]
[366440367,1750257039769,-413.65,0.00016438,2]
[366440368,1750257039778,-490.0,0.00016438,2]
[366440369,1750257039788,-490.0,0.00016438,2]
[366440370,1750257039798,-490.0,0.00016438,2]
[366440371,1750257039808,-871.98,0.00016438,2]
[366440372,1750257039818,-490.0,0.00016438,2]
[366440373,1750257039828,-490.0,0.00016438,2]
[366440374,1750257039838,-491.99752988,0.00016438,2]
[366440375,1750257039848,-491.87475028,0.00016438,2]
[366440376,1750257039858,-490.0,0.00016438,2]
[366440377,1750257039867,-490.0,0.00016438,2]
[366440378,1750257039877,-494.34902815,0.00016438,2]
[366440379,1750257039887,-584.75,0.00016438,2]
[366440380,1750257039898,-589.43,0.00016438,2]
[366440381,1750257039908,-494.78892502,0.00016438,2]
[366440382,1750257039918,-490.0,0.00016438,2]
[366440383,1750257039928,-490.0,0.00016438,2]
[366440384,1750257039938,-496.08102448,0.00016438,2]
[366440385,1750257039948,-495.82944651,0.00016438,2]
[366440386,1750257039958,-490.0,0.00016438,2]
[366440387,1750257039969,-289.5241364,0.00016438,2]
[366440388,1750257039979,-490.0,0.00016438,2]
[366440389,1750257039991,-493.58937587,0.00016438,2]
[366440390,1750257040000,-908.44,0.00016438,2]
[366440391,1750257040010,-490.0,0.00016438,2]
[366440392,1750257040020,-409.7052186,0.00016438,2]
[366440393,1750257040030,-499.53721465,0.00016438,2]
[366440394,1750257040040,-490.13,0.00016438,2]
[366440395,1750257040050,-492.13708038,0.00016438,2]
[366440396,1750257040061,-490.0,0.00016438,2]
[366440397,1750257040070,-490.0,0.00016438,2]
[366440398,1750257040081,-490.0,0.00016438,2]
[366440399,1750257040091,-490.0,0.00016438,2]
[366440400,1750257040102,-490.0,0.00016438,2]
[366440401,1750257040112,-490.0,0.00016438,2]
[366440402,1750257040122,-490.0,0.00016438,2]
[366440403,1750257040132,-490.0,0.00016438,2]
[366440404,1750257040141,-490.0,0.00016438,2]
[366440405,1750257040151,-491.93456095,0.00016438,2]
[366440406,1750257040161,-490.0,0.00016438,2]
[366440407,1750257040171,-490.0,0.00016438,2]
[366440408,1750257040181,-490.0,0.00016438,2]
[366440409,1750257040192,-500.57910288,0.00016438,2]
[366440410,1750257040202,-490.0,0.00016438,2]
[366440411,1750257040211,-490.0,0.00016438,2]
[366440412,1750257040221,-490.0,0.00016438,2]
[366440413,1750257040231,-490.0,0.00016438,2]
[366440414,1750257040243,-500.90944536,0.00016438,2]
[366440415,1750257040253,-490.0,0.00016438,2]
[366440416,1750257040264,-490.0,0.00016438,2]
[366440417,1750257040274,-490.0,0.00016438,2]
[366440418,1750257040284,-490.0,0.00016438,2]
[366440419,1750257040294,-460.7028213,0.00016438,2]
[366440420,1750257040305,-670.85,0.00016438,2]
[366440421,1750257040315,-490.0,0.00016438,2]
[366440422,1750257040325,-494.09798835,0.00016438,2]
[366440423,1750257040336,-490.0,0.00016438,2]
[366440424,1750257040347,-490.0,0.00016438,2]
[366440425,1750257040358,-490.0,0.00016438,2]
[366440426,1750257040368,-490.0,0.00016438,2]
[366440427,1750257040380,-594.25,0.00016438,2]
[366440428,1750257040391,-493.07650844,0.00016438,2]
[366440429,1750257040403,-502.87031117,0.00016438,2]
[366440430,1750257040413,-490.0,0.00016438,2]
[366440431,1750257040423,-490.0,0.00016438,2]
[366440432,1750257040433,-492.86142388,0.00016438,2]
[366440433,1750257040443,-490.0,0.00016438,2]
[366440434,1750257040454,-496.99246216,0.00016438,2]
[366440435,1750257040464,-490.0,0.00016438,2]
[366440436,1750257040475,-490.0,0.00016438,2]
[366440437,1750257040487,-490.0,0.00016438,2]
[366440438,1750257040499,-491.24439514,0.00016438,2]
[366440439,1750257040509,-490.0,0.00016438,2]
[366440440,1750257040519,-674.18,0.00016438,2]
[366440441,1750257040529,-490.0,0.00016438,2]
[366440442,1750257040538,-490.0,0.00016438,2]
[366440443,1750257040548,-490.0,0.00016438,2]
[366440444,1750257040558,-493.89592014,0.00016438,2]
[366440445,1750257040569,-511.44271607,0.00016438,2]
[366440446,1750257040580,-491.50995532,0.00016438,2]
[366440447,1750257040590,-562.72,0.00016438,2]
[366440449,1750257040600,-490.0,0.00016438,2]
[366440451,1750257040610,-490.0,0.00016438,2]
[366440453,1750257040620,-490.0,0.00016438,2]
[366440455,1750257040630,-581.59,0.00016438,2]
[366440457,1750257040640,-504.41449192,0.00016438,2]
[366440459,1750257040650,-490.0,0.00016438,2]
[366440461,1750257040660,-490.0,0.00016438,2]
[366440463,1750257040669,-571.73,0.00016438,2]
[366440465,1750257040680,-404.18899389,0.00016438,2]
[366440467,1750257040689,-490.0,0.00016438,2]
[366440469,1750257040699,-490.0,0.00016438,2]
[366440471,1750257040708,-494.5757695,0.00016438,2]
[366440473,1750257040717,-490.0,0.00016438,2]
[366440474,1750257040727,-491.51145597,0.00016438,2]
[366440477,1750257040738,-490.0,0.00016438,2]
[366440478,1750257040748,-490.0,0.00016438,2]
[366440480,1750257040758,-493.96553627,0.00016438,2]
[366440482,1750257040768,-510.38677069,0.00016438,2]
[366440484,1750257040778,-500.0,0.00016438,2]
[366440485,1750257040788,-495.84081222,0.00016438,2]
[366440486,1750257040798,-490.0,0.00016438,2]
[366440487,1750257040808,-490.0,0.00016438,2]
[366440488,1750257040819,-491.52004417,0.00016438,2]
[366440489,1750257040829,-493.82803285,0.00016438,2]
[366440491,1750257040840,-490.0,0.00016438,2]
[366440494,1750257040850,-490.0,0.00016438,2]
[366440495,1750257040863,-247.06400784,0.00016438,2]
[366440496,1750257040873,-256.56116103,0.00016438,2]
[366440497,1750257040885,-490.0,0.00016438,2]
[366440498,1750257040895,-490.0,0.00016438,2]
[366440499,1750257040905,-512.65,0.00016438,2]
[366440500,1750257040914,-578.22,0.00016438,2]
[366440501,1750257040924,-461.69143354,0.00016438,2]
[366440502,1750257040934,-490.0,0.00016438,2]
[366440503,1750257040944,-490.0,0.00016438,2]
[366440504,1750257040954,-494.18990004,0.00016438,2]
[366440505,1750257040963,-490.0,0.00016438,2]
[366440506,1750257040974,-219.43749144,0.00016438,2]
[366440507,1750257040984,-490.0,0.00016438,2]
[366440508,1750257040996,-503.9853385,0.00016438,2]
[366440509,1750257041006,-502.22,0.00016438,2]
[366440510,1750257041016,-535.71,0.00016438,2]
[366440511,1750257041026,-490.0,0.00016438,2]
[366440512,1750257041036,-494.18316262,0.00016438,2]
[366440513,1750257041046,-490.0,0.00016438,2]
[366440514,1750257041056,-528.62,0.00016438,2]
[366440515,1750257041066,-490.0,0.00016438,2]
[366440516,1750257041076,-490.0,0.00016438,2]
[366440517,1750257041085,-761.74,0.00016438,2]
[366440518,1750257041095,-490.0,0.00016438,2]
[366440519,1750257041105,-490.0,0.00016438,2]
[366440520,1750257041114,-1000.0,0.00016438,2]
[366440521,1750257041124,-549.14,0.00016438,2]
[366440522,1750257041134,-490.0,0.00016438,2]
[366440523,1750257041145,-490.0,0.00016438,2]
[366440524,1750257041154,-490.0,0.00016438,2]
[366440525,1750257041164,-490.0,0.00016438,2]
[366440526,1750257041173,-490.0,0.00016438,2]
[366440527,1750257041183,-711.34,0.00016438,2]
[366440528,1750257041194,-1157.46,0.00016438,2]
[366440529,1750257041203,-500.0,0.00016438,2]
[366440530,1750257041213,-504.90418039,0.00016438,2]
[366440531,1750257041223,-490.0,0.00016438,2]
[366440532,1750257041233,-494.72822648,0.00016438,2]
[366440533,1750257041248,-490.0,0.00016438,2]
[366440534,1750257041259,-490.0,0.00016438,2]
[366440535,1750257041269,-492.59608998,0.00016438,2]
[366440536,1750257041279,-1138.45,0.00016438,2]
[366440537,1750257041289,-574.18,0.00016438,2]
[366440538,1750257041299,-490.0,0.00016438,2]
[366440539,1750257041309,-490.0,0.00016438,2]
[366440540,1750257041319,-490.0,0.00016438,2]
[366440541,1750257041329,-490.0,0.00016438,2]
[366440542,1750257041338,-490.0,0.00016438,2]
[366440543,1750257041348,-490.0,0.00016438,2]
[366440544,1750257041358,-697.93,0.00016438,2]
[366440545,1750257041368,-490.0,0.00016438,2]
[366440546,1750257041377,-1306.71,0.00016438,2]
[366440547,1750257041386,-460.0,0.00016438,2]
[366440548,1750257041397,-490.0,0.00016438,2]
[366440549,1750257041407,-490.0,0.00016438,2]
[366440550,1750257041419,-513.85,0.00016438,2]
[366440551,1750257041429,-490.0,0.00016438,2]
[366440552,1750257041440,-1315.98,0.00016438,2]
[366440553,1750257041450,-490.0,0.00016438,2]
[366440554,1750257041460,-1490.15,0.00016438,2]
[366440555,1750257041470,-1315.98,0.00016438,2]
[366440556,1750257041480,-497.27502492,0.00016438,2]
[366440557,1750257041494,-1315.98,0.00016438,2]
[366440558,1750257041504,-1315.98,0.00016438,2]
[366440559,1750257041513,-1470.31,0.00016438,2]
[366440560,1750257041523,-490.0,0.00016438,2]
[366440561,1750257041533,-490.0,0.00016438,2]
[366440562,1750257041542,-650.64,0.00016438,2]
[366440563,1750257041551,-714.69,0.00016438,2]
[366440564,1750257041561,-496.04622786,0.00016438,2]
[366440565,1750257041571,-1055.17,0.00016438,2]
[366440566,1750257041580,-500.0,0.00016438,2]
[366440567,1750257041590,-500.0,0.00016438,2]
[366440568,1750257041600,-500.0,0.00016438,2]
[366440569,1750257041610,-500.0,0.00016438,2]
[366440570,1750257041619,-490.0,0.00016438,2]
[366440571,1750257041629,-490.0,0.00016438,2]
[366440572,1750257041639,-938.74,0.00016438,2]
[366440573,1750257041648,-752.12,0.00016438,2]
[366440574,1750257041657,-746.58,0.00016438,2]
[366440575,1750257041667,-615.79,0.00016438,2]
[366440576,1750257041677,-1184.09,0.00016438,2]
[366440577,1750257041688,-490.0,0.00016438,2]
[366440578,1750257041698,-490.0,0.00016438,2]
[366440579,1750257041707,-595.15,0.00016438,2]
[366440580,1750257041718,-549.19854135,0.00016438,2]
[366440581,1750257041735,-546.89,0.00016438,2]
[366440582,1750257041746,-490.0,0.00016438,2]
[366440583,1750257041755,-892.68,0.00016438,2]
[366440584,1750257041764,-490.0,0.00016438,2]
[366440585,1750257041772,-662.92,0.00016438,2]
[366440586,1750257041780,-490.0,0.00016438,2]
[366440587,1750257041789,-784.12,0.00016438,2]
[366440588,1750257041798,-1398.48,0.00016438,2]
[366440589,1750257041807,-1387.74,0.00016438,2]
[366440590,1750257041816,-1002.15,0.00016438,2]
[366440591,1750257041826,-562.5,0.00016438,2]
[366440592,1750257041835,-490.0,0.00016438,2]
[366440593,1750257041845,-490.0,0.00016438,2]
[366440594,1750257041854,-1114.11,0.00016438,2]
[366440595,1750257041864,-490.0,0.00016438,2]
[366440596,1750257041874,-1158.83,0.00016438,2]
[366440597,1750257041883,-490.0,0.00016438,2]
[366440598,1750257041892,-490.0,0.00016438,2]